Workbook

Sheet FullBudget
D2: LOMA RICA / BROWNS VALLEY C.S.D
D3: FISCAL YEAR 24 / 25 | M3: IMPORTANT: BUDGET ITEM MUST CORRESPOND TO THE ACCOUNT NUMBER IN THE BLUE COLUMN
D4: BUDGET
O5: AccountName | P5: AccountNumber
O6: Accounting | P6: 6061
C7: INCOME | D7: Projected Assessments | I7: 291800 | O7: Amador Contract | P7: 6090
D8: Equipment Rental | I8: 40000 | O8: Building Construction | P8: 6540
D9: Interest Income | I9: 13500 | O9: Clerical | P9: 6063
D10: Current Taxes $4200, Direct Assessment $500, State Hopter $60 | I10: =4200+500+60 -> 4760 | O10: Consultants | P10: 6070
D11: Volunteer Fire Assistance Program Grant | I11: 4838 | O11: Credit Card Charges | P11: CreditCard
O12: Dispatch Service | P12: 6130
L13: Account # | O13: Dues & Publications | P13: 6220
C14: EXPENSES | D14: Payroll | H14: =F15+F16 -> 14000 | O14: Election Costs | P14: 6410
E15: Wages | F15: 12600 | L15: 6000 | O15: Equipment Maintenance | P15: 6510
E16: Taxes | F16: 1400 | L16: 6010 | O16: Equipment Purchases | P16: 6520
D17: Worker's Compensation | H17: 3500 | L17: 6020 | O17: Equipment Rental Expense | P17: 6530
D18: Health & Safety | H18: 3000 | L18: 6030 | O18: Equipment Reserve | P18: 6525
D19: Volunteer Reimbursements | H19: 6000 | L19: 6040 | O19: Frequency Charges | P19: 6353
D20: Professional Fees | H20: =SUM(F21:F22) -> 10900 | O20: Fuel | P20: 6310
E21: Accounting and Audits | F21: 6900 | L21: 6061 | O21: Health & Safety | P21: 6030
E22: Legal | F22: 4000 | L22: 6062 | O22: Insurance | P22: 6160
D23: Training | H23: 1000 | L23: 6080 | O23: Interest Expense | P23: 8500
D24: Amador Contract | H24: 250000 | L24: 6090 | O24: Joint Powers | P24: 6230
D25: Fire Station Expenses | H25: =SUM(F26:F28) -> 9000 | O25: Land Purchase | P25: 6550
E26: Utilities | F26: 5000 | L26: 6113 | O26: Legal | P26: 6062
E27: Maintenance | F27: 2000 | L27: 6114 | O27: Licenses & Fees | P27: 6210
E28: Supplies | F28: 2000 | L28: 6115 | O28: Maintenance-Radios | P28: 6354
D29: Insurance | G29: 12800 | H29: 12800 | L29: 6160 | O29: Maintenance-Stations | P29: 6114
D30: Office Expenses | H30: 3000 | L30: 6200 | O30: Miscellaneous Expense | P30: 6900
D31: Dues & Publications | H31: 500 | L31: 6220 | O31: Office Expense | P31: 6200
D32: Joint Powers Authority | H32: 2000 | L32: 6230 | O32: Operating Supplies | P32: 6500
D33: Vehicle Maintenance | H33: 10000 | L33: 6300 | O33: Payroll Taxes | P33: 6010
D34: Fuel | H34: 1000 | L34: 6310 | O34: Payroll Wages | P34: 6000
D35: Radio Expenses | H35: =SUM(F36:F37) -> 2000 | O35: Petty Cash | P35: PettyCash
E36: Maintenance | F36: 1000 | L36: 6354 | O36: Professional Fees | P36: 6060
E37: Purchase | F37: 1000 | L37: 6355 | O37: Public Relations | P37: 6400
D38: Public Relations | H38: 500 | L38: 6400 | O38: Purchases (Radio) | P38: 6355
D39: Election Costs | H39: 0 | L39: 6410 | O39: Radio Expenses | P39: 6350
D40: Operating Supplies | H40: 4000 | L40: 6500 | O40: Supplies | P40: 6115
D41: Equipment Maintenance | H41: 3000 | L41: 6510 | O41: Training | P41: 6080
D42: Equipment Purchases | H42: =2000+9675 -> 11675 | L42: 6520 | O42: Uncatergorized Expenses | P42: 6999
D43: Equipment Reserves | H43: =I47-SUM(H14:H42) -> 7023 | L43: 6525 | O43: Utilities | P43: 6113
O44: Vehicle Maintenance | P44: 6300
C45: TOTAL EXPENSES | H45: =SUM(H14:H44) -> 354898 | O45: Volunteer Reimbursement | P45: 6040
O46: Worker's Compensation | P46: 6020
C47: TOTAL REVENUES | I47: =SUM(I7:I12) -> 354898
L54: .

Sheet Expenses
C1: BUDGET RECONCILIATION
C2: =FullBudget!D3 -> FISCAL YEAR 24 / 25
A3: Prepared: | B3: =TODAY() -> 2025-07-21 | G3: BUDGETED | I3: EXPENSED | K3: BALANCE
B5: EXPENSES | C5: Payroll | G5: =E6+E7 -> 14000 | K5: =G5-SUM(I6:I7) -> -2955.91
D6: Wages | E6: =IF(FullBudget!L15=6000,FullBudget!F15,"!") -> 12600 | I6: 14360
D7: Taxes | E7: =IF(FullBudget!L16=6010,FullBudget!F16,"!") -> 1400 | I7: 2595.91
C8: Worker's Compensation | G8: 3730 | I8: 3806 | K8: =G8-I8 -> -76
C9: Health & Safety | G9: 0 | I9: =IFERROR(INDEX(Data!$B$2:$B$50,MATCH("6030",Data!$A$2:$A$50,0)),0) -> 0 | K9: 0
C10: Volunteer Reimbursements | G10: 3000 | I10: 3191.09 | K10: -191.09
C11: Professional Fees | G11: 24000 | K11: =G11-SUM(I12:I14) -> -22089.55
D12: Accounting and Audit | E12: 20000 | I12: 3666
D13: Legal | E13: =IF(FullBudget!L22=6062,FullBudget!F22,"!") -> 4000 | I13: 3146.55
D14: Other | I14: 39277
C15: Training | G15: =IF(FullBudget!L23=6080,FullBudget!H23,"!") -> 1000 | I15: =IFERROR(INDEX(Data!$B$2:$B$50,MATCH("6080",Data!$A$2:$A$50,0)),0) -> 0 | K15: 1000
C16: Amador Contract | G16: 371348 | I16: 139637.4 | K16: 231710.6
C17: Fire Station Expenses | G17: =SUM(E18:E20) -> 13500 | K17: =G17-SUM(I18:I20) -> 1368.2
D18: Utilities | E18: 8000 | I18: 6910.84
D19: Maintenance | E19: 3000 | I19: 1883.79
D20: Supplies | E20: 2500 | I20: 3337.17
C21: Insurance | G21: 35404 | I21: 51528 | K21: -16124
C22: Office Expenses | G22: 1000 | I22: 2909.75 | K22: -1909.75
C23: Dues & Publications | G23: 2100 | I23: 2030.67 | K23: 69.33
C24: Joint Powers Authority | G24: 3000 | I24: 6000 | K24: -3000
C25: Vehicle Maintenance | G25: 10000 | I25: 17691.94 | K25: -7691.94
C26: Fuel | G26: 1000 | I26: =IFERROR(INDEX(Data!$B$2:$B$50,MATCH("6310",Data!$A$2:$A$50,0)),0) -> 0 | K26: 1000
C27: Radio Expenses | G27: 1000 | K27: =G27-SUM(I28:I30) -> -2869.57
D28: Maintenance | E28: 1000 | I28: 260
D29: Purchase | E29: 0 | I29: 3114.57
D30: Repair | I30: 495
C31: Public Relations | G31: 48000 | I31: 8098.3 | K31: 39901.7
C32: Election Costs | G32: =IF(FullBudget!L39=6410,FullBudget!H39,"!") -> 0 | I32: =IFERROR(INDEX(Data!$B$2:$B$50,MATCH("6410",Data!$A$2:$A$50,0)),0) -> 0 | K32: 0
C33: Operating Supplies | G33: 2500 | I33: 634.57 | K33: 1865.43
C34: Equipment Maintenance | G34: 3200 | I34: 9136.08 | K34: -5936.08
C35: Equipment Purchases | G35: 0 | I35: 2687.66 | K35: -2687.66
C36: Equipment Reserves | G36: 0 | I36: =IFERROR(INDEX(Data!$B$2:$B$50,MATCH("6525",Data!$A$2:$A$50,0)),0) -> 0 | K36: 0
B38: TOTAL EXPENSES | G38: =SUM(G5:G37) -> 537782 | I38: =SUM(I5:I37) -> 326398.29 | K38: =SUM(K5:K37) -> 211383.71

Sheet Data
A1: ACCOUNT | B1: AMOUNT
